bitfinex/quotes_ETHUSD_20250511
["timestamp","ask_amount","ask_price","bid_price","bid_amount"]
[1746984155834,0.71726456,2481.2,2481.1,0.05]
[1746984156006,0.55,2481.2,2481.1,0.05]
[1746984156213,0.71076463,2481.2,2481.1,0.05]
[1746984161551,6.15516853,2481.2,2481.1,0.05]
[1746984161848,2.12486062,2481.2,2481.1,0.05]
[1746984162052,0.71076463,2481.2,2481.1,0.05]
[1746984164219,4.74107254,2481.2,2481.1,0.05]
[1746984164772,0.71076463,2481.2,2481.1,0.05]
[1746984164919,4.74107254,2481.2,2481.1,0.05]
[1746984165124,7.56307254,2481.2,2481.1,0.05]
[1746984165321,9.37890106,2481.2,2481.1,0.05]
[1746984165825,5.34859315,2481.2,2481.1,0.05]
[1746984166321,3.53276463,2481.2,2481.1,0.05]
[1746984168735,0.71076463,2481.2,2481.1,0.05]
[1746984168931,3.53276463,2481.2,2481.1,0.05]
[1746984169237,0.71076463,2481.2,2481.1,0.05]
[1746984169457,4.74107254,2481.2,2481.1,0.05]
[1746984169629,6.1539834,2481.2,2481.1,0.05]
[1746984170460,6.9649834,2481.2,2481.1,0.05]
[1746984171567,8.9759834,2481.2,2481.1,0.05]
[1746984172140,4.94567549,2481.2,2481.1,0.05]
[1746984172564,8.9759834,2481.2,2481.1,0.05]
[1746984172767,7.76867549,2481.2,2481.1,0.05]
[1746984172967,11.7989834,2481.2,2481.1,0.05]
[1746984177882,3.53376463,2481.2,2481.1,0.05]
[1746984178175,5.80576463,2481.2,2481.1,0.05]
[1746984178391,6.35576463,2481.2,2481.1,0.05]
[1746984179257,0.71076463,2481.2,2481.1,0.05]
[1746984179461,6.35576463,2481.2,2481.1,0.05]
[1746984180677,3.53376463,2481.2,2481.1,0.05]
[1746984181461,2.98376463,2481.2,2481.1,0.05]
[1746984181659,0.16076463,2481.2,2481.1,0.8377]
[1746984182044,3.74303601,2482.6,2481.1,0.8377]
[1746984182045,3.74303601,2482.6,2481.2,8.0]
[1746984182246,4.48368456,2482.5,2481.5,0.7877]
[1746984182441,4.48368456,2482.5,2481.7,0.7877]
[1746984182442,4.02835965,2482.4,2481.7,0.7877]
[1746984182680,4.02860115,2482.3,2481.9,8.0]
[1746984182891,4.17659682,2482.4,2481.9,8.0]
[1746984183108,0.4554036,2482.5,2481.9,8.0]
[1746984183249,0.14816986,2482.3,2481.9,8.0]
[1746984183445,4.73038976,2482.4,2481.9,8.0]
[1746984183770,0.14816986,2482.2,2481.9,8.0]
[1746984183951,0.55,2482.3,2481.9,8.0]
[1746984184152,0.14816986,2482.1,2481.9,8.0]
[1746984184398,0.55,2482.3,2481.9,8.0]
[1746984184681,0.14816986,2482.0,2481.9,8.0]
[1746984184869,0.55,2482.1,2481.9,8.0]
[1746984185092,0.14816986,2482.0,2481.9,8.0]
[1746984185681,0.55,2482.3,2481.9,8.0]
[1746984186291,0.14816986,2482.2,2481.9,8.0]
[1746984186646,0.55,2482.3,2481.9,8.0]
[1746984186846,0.15372444,2482.1,2481.9,8.0]
[1746984187052,4.29303601,2482.3,2481.9,12.82625]
[1746984187252,0.15927902,2482.0,2481.9,12.82625]
[1746984187488,4.52830513,2482.2,2481.9,12.82625]
[1746984187692,4.73828788,2482.0,2481.9,4.82625]
[1746984187892,0.55,2481.5,2481.2,3.4311621]
[1746984188093,7.40012564,2481.4,2481.3,3.4311621]
[1746984188276,4.58030791,2481.2,2481.1,0.05]
[1746984188670,4.73678524,2481.2,2481.1,0.05]
[1746984190292,0.70647733,2481.2,2481.1,0.05]
[1746984191188,4.73678524,2481.2,2481.1,0.05]
[1746984191354,5.52698524,2481.2,2481.1,0.05]
[1746984191554,6.9364653,2481.2,2481.1,0.05]
[1746984193022,6.1462653,2481.2,2481.1,0.05]
[1746984193224,4.5819329,2480.2,2480.1,0.05]
[1746984193496,2.82,2480.4,2480.1,0.05]
[1746984193809,2.82,2480.4,2480.1,0.8784]
[1746984193999,0.14706839,2480.3,2480.1,0.8784]
[1746984194501,4.58146238,2480.5,2480.1,0.8784]
[1746984195054,0.55,2480.3,2480.1,0.8784]
[1746984195495,4.58186892,2480.3,2480.1,0.8784]
[1746984195677,4.72900129,2480.2,2480.1,0.05]
[1746984196883,0.69706839,2480.2,2480.1,0.05]
[1746984197123,4.72900129,2480.2,2480.1,0.05]
[1746984197323,5.48588421,2480.2,2480.1,0.05]
[1746984197528,6.29648421,2480.2,2480.1,0.05]
[1746984198031,4.03339652,2479.3,2479.2,3.4311621]
[1746984198201,9.13993253,2479.3,2479.2,3.4311621]
[1746984198406,9.28294409,2479.3,2479.2,3.4311621]
[1746984198629,9.28294409,2479.3,2479.2,11.4311621]
[1746984198630,0.69301156,2479.3,2479.2,11.4311621]
[1746984198829,0.14301156,2479.3,2479.2,23.43643931]
[1746984199045,0.14301156,2479.3,2479.2,12.2236621]
[1746984199363,0.1221572,2479.3,2479.2,4.2236621]
[1746984199872,4.58282248,2479.7,2479.2,4.2236621]
[1746984200034,0.12075233,2479.3,2479.2,4.2236621]
[1746984200234,4.58282248,2479.7,2479.2,4.2236621]
[1746984200433,0.12075233,2479.3,2479.2,4.2236621]
[1746984200634,6.38275631,2479.7,2479.3,8.0]
[1746984201164,13.41651584,2479.9,2479.3,8.0]
[1746984201165,0.55,2479.8,2479.3,8.0]
[1746984201464,0.55,2479.8,2479.5,8.0]
[1746984202025,5.641,2479.9,2479.7,8.0]
[1746984202469,5.641,2479.9,2479.7,8.7925]
[1746984203558,2.821,2479.9,2479.8,11.4311621]
[1746984204545,3.371,2479.9,2479.8,11.4311621]
[1746984204746,2.821,2479.9,2479.8,11.4311621]
[1746984205335,0.8075,2480.8,2479.9,10.821]
[1746984205536,2.821,2480.8,2480.2,0.7636]
[1746984205945,0.8075,2481.4,2480.5,0.7636]
[1746984206152,0.85803721,2481.4,2480.7,8.0]
[1746984206355,3.74303601,2481.5,2480.8,0.7636]
[1746984206877,4.02967478,2481.6,2481.0,8.0]
[1746984207065,4.03012332,2481.4,2481.2,8.0]
[1746984207268,3.74303601,2481.5,2481.2,8.0]
[1746984208184,0.55,2481.4,2481.2,8.0]
[1746984208478,5.6943381,2481.4,2481.2,8.0]
[1746984208894,1.66428917,2481.4,2481.2,8.0]
[1746984209064,0.55,2481.4,2481.2,8.0]
[1746984209442,7.37153601,2481.8,2481.2,8.0]
[1746984209646,2.821,2481.8,2481.2,0.04030357]
[1746984210061,2.821,2481.8,2481.1,0.8254]
[1746984210388,2.821,2481.8,2481.2,0.73079893]
[1746984210552,2.821,2481.8,2481.2,0.77109705]
[1746984210884,2.821,2481.8,2481.2,0.73079893]
[1746984211086,6.85040957,2481.8,2481.1,0.8254]
[1746984211321,2.821,2481.8,2481.3,0.8254]
[1746984211476,6.56203601,2482.2,2481.3,8.8254]
[1746984211805,6.56203601,2482.2,2481.5,8.0]
[1746984212002,0.55,2482.1,2481.7,8.0]
[1746984212222,0.05,2482.4,2481.9,8.0]
[1746984212364,0.05,2482.4,2482.2,0.8254]
[1746984212569,0.05,2482.4,2482.3,16.255429]
[1746984213000,0.05,2482.4,2482.3,15.236119]
[1746984213177,0.18430975,2482.4,2482.3,15.236119]
[1746984213526,0.05,2482.4,2482.3,8.0]
[1746984213994,0.18611379,2482.4,2482.3,8.0]
[1746984214306,1.0764294,2482.4,2482.3,8.0]
[1746984214470,0.18611379,2482.4,2482.3,8.0]
[1746984216013,0.18611379,2482.4,2482.3,23.315261]
[1746984216612,0.18611379,2482.4,2482.3,8.0]
[1746984216986,0.18611379,2482.4,2482.3,18.7390411]
[1746984217385,0.18611379,2482.4,2482.3,11.4311621]
[1746984217577,0.73611379,2482.4,2482.3,11.4311621]
[1746984217811,0.18611379,2482.4,2482.3,11.4311621]
[1746984218306,0.18611379,2482.4,2482.3,32.3981311]
[1746984218486,0.18611379,2482.4,2482.3,33.78853561]
[1746984218691,0.18611379,2482.4,2482.3,34.56783561]
[1746984219075,0.18611379,2482.4,2482.3,26.94424761]
[1746984219413,0.18611379,2482.4,2482.3,21.78964061]
[1746984219601,0.18611379,2482.4,2482.3,21.05365561]
[1746984221326,0.18611379,2482.4,2482.3,12.2104621]
[1746984221814,0.05,2482.4,2482.3,22.8555741]
[1746984223412,0.05,2482.4,2482.3,25.2274621]
[1746984223605,0.05,2482.4,2482.3,56.9560731]
[1746984223795,0.05,2482.4,2482.3,60.9643661]
[1746984223981,0.05,2482.4,2482.3,65.06659361]
[1746984224814,0.05,2482.4,2482.3,64.58651361]
[1746984225332,0.05,2482.4,2482.3,52.44363961]
[1746984225532,0.05,2482.4,2482.3,51.84394161]
[1746984225696,0.05,2482.4,2482.3,4.2104621]
[1746984226082,0.19097372,2482.4,2482.3,12.2104621]
[1746984226278,0.05,2482.4,2482.3,32.2823021]
[1746984226504,0.19097372,2482.4,2482.3,27.4164251]
[1746984226825,0.19097372,2482.4,2482.3,24.6950941]
[1746984226985,0.19097372,2482.4,2482.3,27.16460351]
[1746984227182,0.19097372,2482.4,2482.3,20.10460351]
[1746984227396,0.19097372,2482.4,2482.3,19.20577551]
[1746984227721,0.19097372,2482.4,2482.3,7.0588811]
[1746984227920,0.797,2482.0,2481.4,3.4311621]
[1746984228118,3.74303601,2481.5,2481.1,3.4311621]
[1746984228320,0.797,2481.4,2480.2,13.6311621]
[1746984228510,4.03072048,2481.0,2480.3,4.17181621]
[1746984228826,4.5805489,2481.1,2480.3,4.17181621]
[1746984229119,0.14097372,2480.9,2480.3,4.17181621]
[1746984229303,4.5805489,2481.1,2480.4,8.0]
[1746984229506,0.14097372,2480.8,2480.4,8.0]
[1746984229688,4.03063902,2481.0,2480.4,1.21718162]
[1746984230325,0.14097372,2480.9,2480.5,0.04031152]
[1746984230682,0.14097372,2480.9,2480.3,0.7959]
[1746984230683,4.58048213,2481.1,2480.3,0.7959]
[1746984230908,0.14097372,2480.8,2480.4,0.04030971]
[1746984231120,0.55,2481.2,2480.3,0.7959]
[1746984231284,0.14097372,2480.7,2480.4,0.91989743]
[1746984231483,0.55,2481.2,2480.6,8.0]
[1746984231720,0.55,2481.2,2480.6,0.04030738]
[1746984231920,0.12538527,2481.1,2480.6,0.04030738]
[1746984232235,0.55,2481.5,2480.8,8.0]
[1746984232518,0.55,2481.5,2480.8,0.04030494]
[1746984232519,0.12538527,2481.0,2480.8,0.04030494]
[1746984232718,1.54631613,2481.5,2481.0,8.0]
[1746984232921,0.99631613,2481.5,2480.7,0.8057]
[1746984233128,18.52548104,2483.0,2481.0,0.8057]
[1746984233129,0.8539,2482.4,2481.0,0.8057]
[1746984233421,4.02864563,2482.3,2481.3,0.8057]
[1746984233786,4.02864563,2482.3,2481.4,0.0402897]
[1746984233983,4.83934573,2482.3,2481.4,0.88459897]
[1746984235222,4.83934573,2482.3,2481.3,0.8057]
[1746984235223,0.8107001,2482.3,2481.3,0.8057]
[1746984235421,0.55,2481.5,2480.9,0.7932]
[1746984235626,0.55,2481.5,2481.0,3.4311621]
[1746984235827,4.58030791,2481.2,2481.1,3.4311621]
[1746984236139,1.00803079,2481.2,2481.1,3.4311621]
[1746984236521,1.00803079,2481.2,2481.1,11.4311621]
[1746984236727,1.00803079,2481.2,2481.1,3.4311621]
[1746984237463,0.55,2481.2,2481.1,3.4311621]
[1746984237636,4.03005399,2481.4,2481.1,3.4311621]
[1746984238523,0.55,2481.4,2481.1,3.4311621]
[1746984238860,0.55,2481.2,2481.1,3.4311621]
[1746984239021,4.58030791,2481.2,2481.1,3.4311621]
[1746984239221,5.0383387,2481.2,2481.1,3.4311621]
[1746984240472,4.03016532,2481.3,2481.1,3.4311621]
[1746984241178,4.58112024,2480.7,2480.6,3.4311621]
[1746984241376,4.58112024,2480.7,2479.9,10.2]
[1746984241377,10.15912298,2480.7,2479.9,3.4311621]
[1746984241584,0.55,2480.5,2480.1,8.0]
[1746984241791,0.55,2480.6,2480.1,8.0]
[1746984242153,4.58115067,2480.7,2480.1,8.0]
[1746984242371,6.08257619,2480.7,2480.1,8.0]
[1746984242685,6.08258317,2480.7,2480.1,3.4311621]
[1746984242843,4.5819329,2480.2,2479.5,4.2243621]
[1746984243183,0.55,2480.2,2479.6,3.4714861]
[1746984243536,0.55,2480.2,2479.7,8.0]
[1746984243979,0.55,2480.1,2479.7,8.0]
[1746984244178,0.67077009,2480.1,2479.7,8.0]
[1746984244381,4.70294684,2480.1,2479.7,8.0]
[1746984244682,0.67077009,2480.1,2479.7,8.0]
[1746984245035,0.12077009,2480.1,2479.7,8.0]
[1746984245238,0.12077009,2480.1,2479.7,9.26275974]
[1746984245465,0.8103,2480.7,2479.7,8.0]
[1746984245654,0.55,2480.5,2479.7,11.4311621]
[1746984245852,4.58151852,2480.5,2479.7,11.4311621]
[1746984246047,0.55,2480.5,2479.8,0.0403235]
[1746984246256,0.12077009,2480.4,2479.8,0.0403235]
[1746984246650,0.12077009,2480.4,2479.8,1.18747206]
[1746984247048,0.55,2480.6,2479.8,1.18747206]
[1746984247249,0.11946531,2480.3,2479.8,1.14714856]
[1746984247449,0.55,2480.6,2479.8,1.14714856]
[1746984247649,0.11946531,2480.2,2479.8,1.14714856]
[1746984247863,0.55,2480.6,2480.0,8.0]
[1746984248189,2.05574165,2480.6,2480.0,8.0]
[1746984248485,2.05574165,2480.6,2478.5,2.63062305]
[1746984248486,0.55,2479.7,2479.2,3.4311621]
[1746984248847,0.11931475,2479.6,2479.4,8.0]
[1746984248964,0.11931475,2479.6,2479.5,12.574017]
[1746984249166,0.55,2479.9,2479.5,12.167587]
[1746984249366,0.11931475,2479.8,2479.5,8.0]
[1746984249687,0.11931475,2479.8,2479.6,8.0]
[1746984249895,0.11931475,2479.8,2479.4,8.0]
[1746984250075,5.635,2480.0,2479.4,8.0]
[1746984250280,5.635,2480.0,2479.4,8.04032691]
[1746984250281,0.11931475,2479.7,2479.4,8.04032691]
[1746984250603,0.11931475,2479.6,2479.4,8.04032691]
[1746984250809,0.11931475,2479.6,2479.5,14.396461]
[1746984250968,0.55,2480.2,2479.6,8.0]
[1746984251303,0.11770845,2480.1,2479.8,8.0]
[1746984251604,5.632,2480.6,2479.9,2.04224898]
[1746984251805,0.11521604,2480.0,2479.8,8.0]
[1746984252002,9.66336984,2480.6,2479.8,8.0]
[1746984252003,0.55,2480.5,2479.9,11.64103]
[1746984252170,1.70682698,2480.5,2479.7,3.4311621]
[1746984252374,1.70682698,2480.5,2479.8,8.0]
[1746984252910,5.73830328,2480.5,2479.8,8.0]
[1746984253421,5.73840266,2480.5,2479.8,8.0]
[1746984253717,0.55,2480.3,2479.8,8.0]
[1746984253866,0.55,2480.1,2479.8,8.0]
[1746984254361,0.4525123,2480.2,2479.8,8.0]
[1746984254562,0.55,2480.4,2479.8,8.0]
[1746984256008,0.55,2480.4,2479.9,3.4311621]
[1746984258099,0.55,2480.5,2479.9,3.4311621]
[1746984258429,1.65192648,2480.5,2479.9,3.4311621]
[1746984259293,4.14751433,2480.4,2479.9,3.4311621]
[1746984259642,4.0319491,2480.2,2479.9,3.4311621]
[1746984260139,0.11596884,2480.1,2479.9,3.4311621]
[1746984260340,1.3802,2480.0,2479.9,3.4311621]
[1746984260497,1.93303506,2480.0,2479.9,3.4311621]
[1746984260696,0.55,2480.3,2479.9,3.4311621]
[1746984260920,0.11596884,2480.0,2479.9,3.4311621]
[1746984261535,0.55,2480.3,2479.9,3.4311621]
[1746984261732,0.11596884,2480.0,2479.9,3.4311621]
[1746984261895,0.55,2480.3,2479.9,3.4311621]
[1746984262228,1.20136422,2480.3,2479.9,11.4311621]
[1746984262393,0.11596884,2480.2,2480.0,8.0]
[1746984262591,1.20136422,2480.3,2480.0,8.0]
[1746984262827,0.11596884,2480.2,2480.0,8.0]
[1746984263197,4.58163055,2480.4,2480.0,8.0]
[1746984263417,0.11596884,2480.3,2480.0,8.0]
[1746984264039,0.55,2480.6,2480.0,8.0]
[1746984264205,0.10758645,2480.2,2480.0,8.0]
[1746984264515,4.58135634,2480.6,2480.0,8.0]
[1746984264716,0.10763668,2480.1,2480.0,8.0]
[1746984264941,0.7546,2481.4,2480.1,0.7704]
[1746984265143,0.7546,2481.4,2480.3,8.7704]
[1746984265503,0.7546,2481.4,2480.4,0.810705]
[1746984265701,4.7846189,2481.4,2480.4,0.810705]
[1746984265900,0.55,2481.3,2480.5,1.1627705]
[1746984266141,0.55,2481.3,2480.3,10.817]
[1746984266142,4.03139206,2480.6,2480.3,8.0]
[1746984266347,7.39729528,2480.6,2480.4,3.4311621]
[1746984266552,3.366,2480.6,2480.1,8.0]
[1746984266747,3.366,2480.6,2480.2,3.4311621]
[1746984266934,4.58177035,2480.3,2480.2,3.4311621]
[1746984267114,1.3046,2480.3,2480.2,11.4311621]
[1746984267315,5.33637035,2480.3,2480.2,3.4311621]
[1746984267625,0.55,2479.7,2479.4,3.4311621]
[1746984267825,0.55,2479.7,2478.3,14.501]
[1746984267826,8.32768618,2479.7,2479.2,3.4311621]
[1746984268026,0.55,2479.7,2479.2,3.4311621]
[1746984268951,0.55,2479.7,2479.3,8.0]
[1746984269316,4.58282032,2479.7,2479.3,8.0]
[1746984269523,0.55,2479.7,2479.1,3.4811621]
[1746984269751,0.55,2479.2,2479.1,0.05]
[1746984269955,1.00834013,2479.2,2479.1,0.05]
[1746984270562,7.85789934,2479.2,2479.1,0.05]
[1746984274276,5.14201004,2479.2,2479.1,0.05]
[1746984274478,11.56001004,2479.2,2479.1,0.05]
[1746984276135,11.01001004,2479.2,2479.1,0.05]
[1746984276553,11.56001004,2479.2,2479.1,0.05]
[1746984277054,6.97645083,2479.2,2479.1,0.05]
[1746984277252,11.56001004,2479.2,2479.1,0.05]
[1746984278475,2.9181107,2479.2,2479.1,0.05]
[1746984278856,3.4681107,2479.2,2479.1,0.05]
[1746984279252,0.1001107,2479.2,2479.1,0.05]
[1746984279452,20.144,2479.9,2479.1,20.86252293]
[1746984279682,24.17648895,2479.9,2479.2,11.4311621]
[1746984279879,2.89696596,2479.8,2479.2,11.4311621]
[1746984280091,0.55,2479.7,2479.2,11.4311621]
[1746984280285,4.58283245,2479.7,2479.2,11.4311621]
[1746984280775,0.55,2479.4,2479.2,11.4311621]
[1746984280961,0.55,2479.4,2479.1,0.05]
[1746984280962,4.58355921,2479.2,2479.1,0.05]
[1746984281163,5.09691513,2479.2,2479.1,0.05]
[1746984281381,7.91291513,2479.2,2479.1,0.05]
[1746984285006,8.67371513,2479.2,2479.1,0.05]
[1746984287073,4.58518682,2478.2,2478.1,0.05]
[1746984287812,0.55,2478.2,2478.1,0.05]
[1746984288280,4.58518682,2478.2,2478.1,0.05]
[1746984288812,1.19304716,2478.2,2478.1,0.05]
[1746984289017,0.55,2478.2,2478.1,0.05]
[1746984289322,4.66729213,2478.2,2478.1,0.05]
[1746984289522,9.44063644,2478.2,2478.1,0.05]
[1746984295407,0.55,2477.2,2477.1,0.05]
[1746984295609,3.367,2477.2,2477.1,0.05]
[1746984295811,3.44245965,2477.2,2477.1,0.05]
[1746984296726,8.10532137,2477.2,2477.1,0.05]
[1746984297590,11.85939218,2477.2,2477.1,0.05]
[1746984298987,7.82257643,2477.2,2477.1,0.05]
[1746984299338,11.85939218,2477.2,2477.1,0.05]
[1746984300329,0.55,2477.0,2475.6,4.2362621]
[1746984300637,8.34251681,2476.2,2475.6,0.8051]
[1746984300931,13.97751681,2476.2,2475.6,0.8051]
[1746984301437,14.97975832,2476.2,2475.3,0.8051]
[1746984301639,25.09533309,2476.2,2474.9,3.4311621]
[1746984302012,25.09533309,2476.2,2475.0,8.0]
[1746984302329,0.55,2475.2,2474.8,0.8051]
[1746984304129,0.55,2475.2,2474.5,0.8051]
[1746984304426,5.35277756,2475.2,2474.1,0.05]
[1746984304841,6.9497,2475.2,2474.1,0.09041763]
[1746984305050,6.187,2475.2,2474.6,0.8051]
[1746984305259,5.637,2475.7,2474.7,0.04040884]
[1746984305458,4.63358232,2475.6,2474.6,0.8051]
[1746984305668,6.85810289,2475.8,2475.2,0.8051]
[1746984305879,0.55,2475.7,2475.2,0.8051]
[1746984306071,6.81261232,2475.8,2475.2,0.8051]
[1746984306224,3.99361232,2475.5,2474.9,0.8051]
[1746984306560,2.8972615,2475.7,2474.6,0.8051]
[1746984306561,0.55,2475.3,2474.6,0.8051]
[1746984306731,0.55,2475.6,2474.6,0.8051]
[1746984306934,4.58944366,2475.6,2474.6,0.8051]
[1746984307154,5.645,2475.6,2474.7,0.0404059]
[1746984307328,5.645,2475.6,2475.2,0.8051]
[1746984307927,0.55,2475.8,2475.2,0.8051]
[1746984308149,14.528,2475.9,2475.2,0.8051]
[1746984308356,13.85776842,2476.0,2475.2,0.8051]
[1746984308357,13.85776842,2476.0,2475.3,0.04039465]
[1746984308541,13.85776842,2476.0,2475.4,0.8051]
[1746984308741,8.21376842,2476.0,2475.6,0.8051]
[1746984308961,8.21376842,2476.0,2475.8,0.8051]
[1746984309626,8.21376842,2476.0,2475.9,22.4362621]
[1746984309828,8.21376842,2476.0,2475.9,24.68392686]
[1746984310138,5.645,2477.0,2476.0,0.8051]
[1746984310331,5.645,2477.0,2476.2,8.8051]
[1746984310531,5.645,2477.0,2476.3,0.04037787]
[1746984310756,0.7627,2477.3,2476.3,0.04037787]
[1746984310941,1.04420384,2477.3,2476.4,0.8051]
[1746984311265,2.82,2477.5,2476.6,0.8051]
[1746984311492,2.82,2477.5,2476.7,0.84547096]
[1746984311650,2.825,2477.7,2476.7,0.84547096]
[1746984311855,2.825,2477.7,2476.7,0.8051]
[1746984312043,0.55,2477.6,2476.7,0.8051]
[1746984312239,0.55,2477.6,2476.2,3.4311621]
[1746984312240,0.7627,2477.5,2475.8,0.8051]
[1746984312445,4.03824465,2476.4,2475.8,0.8051]
[1746984312667,0.55,2476.2,2475.8,0.8051]
[1746984312866,4.58716473,2477.0,2476.0,8.0]
[1746984313029,0.55,2476.5,2475.8,0.8051]
[1746984313435,0.55,2476.5,2475.9,0.04038387]
[1746984313674,0.55,2476.8,2475.9,0.04038387]
[1746984313967,3.403,2476.7,2475.9,0.04038387]
[1746984314165,3.402,2476.7,2476.0,0.7598]
[1746984315058,0.55,2476.7,2476.0,0.7598]
[1746984315228,3.403,2476.7,2476.0,0.7598]
[1746984315424,7.44063544,2476.7,2476.0,0.7598]
[1746984315630,0.55,2476.5,2476.0,0.7598]
[1746984318639,0.55,2476.1,2475.7,0.7869]
[1746984318947,0.55,2475.7,2475.5,3.4311621]
[1746984319173,0.55,2475.7,2475.4,0.7869]
[1746984319339,4.58877275,2476.0,2475.4,0.7869]
[1746984319541,0.55,2475.8,2475.4,0.7869]
[1746984320648,0.55,2476.0,2475.4,0.7869]
[1746984320974,0.55,2475.8,2475.4,0.7869]
[1746984321176,4.03893533,2475.9,2475.4,0.7869]
[1746984321177,0.55,2476.0,2475.4,0.7869]
[1746984321383,0.55,2475.8,2475.4,0.7869]
[1746984324690,0.55,2475.8,2475.3,8.0]
[1746984324873,4.03982951,2475.4,2475.1,0.05]
[1746984325186,2.835,2475.4,2475.1,0.05]
[1746984325573,0.55,2475.8,2475.1,0.05]
[1746984325774,5.56357722,2475.9,2475.1,0.05]
[1746984325775,0.55,2475.3,2475.1,0.05]
[1746984325978,0.55,2475.5,2475.1,0.05]
[1746984326526,4.58979019,2475.4,2475.1,0.05]
[1746984327349,4.58966201,2475.5,2475.1,0.05]
[1746984327592,0.55,2475.5,2475.1,0.05]
[1746984327804,0.458943,2475.4,2475.1,0.05]
[1746984329373,0.55,2475.6,2475.1,0.05]
[1746984329580,0.55,2475.4,2475.1,0.05]
[1746984329979,0.55,2475.4,2475.2,0.7674]
[1746984330180,0.55,2475.5,2475.2,0.7674]
[1746984330577,2.828,2475.6,2475.2,0.7674]
[1746984330890,0.8264,2476.5,2475.7,3.439357]
[1746984331105,0.87122362,2476.5,2476.0,8.0]
[1746984331254,7.88607358,2476.6,2475.9,8.0]
[1746984331450,7.88607358,2476.6,2474.1,2.21441]
[1746984331451,3.99361232,2476.5,2475.1,0.05]
[1746984331674,4.58986387,2475.4,2475.1,0.05]
[1746984332011,2.894,2475.9,2475.2,0.7674]
[1746984332514,0.55,2475.8,2475.2,0.7674]
[1746984332712,2.895,2476.0,2475.3,0.04039678]
[1746984332915,0.55,2475.9,2475.2,0.7674]
[1746984333079,2.895,2476.0,2475.3,0.04039661]
[1746984333278,2.895,2476.0,2475.4,0.7674]
[1746984333797,0.55,2475.9,2475.4,0.7674]
[1746984334129,4.03799158,2476.5,2475.6,8.8106]
[1746984334312,0.55,2476.3,2475.6,11.6788673]
[1746984334479,0.91018182,2476.5,2475.6,0.8106]
[1746984334817,0.55,2476.6,2475.8,0.8106]
[1746984335178,4.0377351,2476.7,2475.8,0.8106]
[1746984335802,18.1865,2476.9,2475.5,10.822]
[1746984335803,21.46446348,2476.9,2476.0,0.8106]
[1746984336008,0.55,2476.7,2476.0,0.8106]
[1746984336303,0.55,2476.8,2476.0,0.8106]
[1746984336481,17.419,2476.9,2476.2,0.8106]
[1746984336674,2.888,2476.9,2476.4,8.0]
[1746984336874,0.55,2476.8,2476.4,8.0]
[1746984337315,2.888,2476.9,2476.4,8.0]
[1746984337797,0.55,2476.5,2476.4,8.0]
[1746984338114,1.00876798,2476.5,2476.4,8.0]
[1746984338482,5.04672477,2476.5,2476.4,8.0]
[1746984339817,1.00876798,2476.5,2476.4,8.0]
[1746984340017,1.00876798,2476.5,2476.2,0.8106]
[1746984340415,0.55,2476.8,2476.2,0.8106]
[1746984340606,3.429,2476.8,2476.2,0.8106]
[1746984341989,0.55,2476.8,2476.2,0.8106]
[1746984342322,0.55,2476.9,2476.3,0.04038053]
[1746984343020,0.55,2476.9,2476.4,0.8303]
[1746984344816,0.55,2476.4,2476.1,0.8223]
[1746984345217,0.55,2476.5,2476.1,0.8223]
[1746984346622,0.55,2476.1,2476.0,8.0]
[1746984346824,0.55,2476.1,2475.9,3.4311621]
[1746984346999,0.55,2476.0,2475.8,0.8223]
[1746984347319,1.00886221,2476.0,2475.6,0.8223]
[1746984347522,1.00886221,2476.0,2475.6,12.2534621]
[1746984348830,0.55,2476.4,2475.6,12.2534621]
[1746984349423,6.90998434,2476.5,2475.8,8.8223]
[1746984349424,2.871,2476.5,2475.8,8.8223]
[1746984349625,2.871,2476.5,2476.0,8.0]
[1746984349831,2.871,2476.8,2476.2,0.8223]
[1746984349998,4.0378868,2476.6,2476.0,8.0]
[1746984350202,0.55,2476.6,2476.0,8.0]
[1746984351906,0.55,2476.6,2476.0,8.04038416]
[1746984352319,0.55,2476.6,2476.1,0.8223]
[1746984352742,4.03648893,2477.5,2476.3,8.8223]
[1746984352950,6.90840068,2477.5,2476.5,8.0]
[1746984353107,0.55,2477.4,2476.5,8.0]
[1746984353511,4.03648986,2477.4,2476.5,8.0]
[1746984354011,0.55,2477.3,2476.5,8.04037435]
[1746984354207,0.55,2477.3,2476.5,8.0]
[1746984354412,0.45864899,2477.2,2476.5,8.0]
[1746984354647,0.55,2477.1,2476.5,8.0]
[1746984355370,2.872,2477.5,2476.7,8.0]
[1746984355516,6.90835352,2477.5,2476.7,8.0]
[1746984355721,2.872,2477.5,2476.7,8.0]
[1746984355921,1.20708,2477.4,2476.7,8.0]
[1746984356120,0.65708,2477.4,2476.7,8.0]
[1746984356317,0.65708,2477.4,2476.1,3.219]
[1746984356318,4.03586466,2477.8,2477.0,0.7822]
[1746984356519,4.58656055,2477.4,2477.1,8.0]
[1746984356738,0.55,2477.2,2477.1,8.0]
[1746984356937,0.55,2477.2,2476.9,8.0]
[1746984357138,0.45866528,2477.1,2476.9,8.0]
[1746984357525,0.55,2477.4,2476.9,8.0]
[1746984358542,0.55,2477.0,2476.5,8.0]
[1746984358757,0.55,2476.8,2476.5,3.4311621]
[1746984359156,4.58754276,2476.8,2476.5,3.4311621]
[1746984359357,0.55,2476.6,2476.5,3.4311621]
[1746984360464,2.881,2477.4,2476.5,36.77239114]
[1746984360631,2.881,2477.4,2476.5,3.4311621]